[Event "*** Titled Tuesday Blitz"]
[Site "Chess.com"]
[Date "2021.03.30"]
[Round "5"]
[White "BJthechessgod"]
[Black "Eliwood44"]
[Result "0-1"]
[WhiteElo "2322"]
[BlackElo "2510"]
[TimeControl "180+1"]
[EndTime "10:56:45 PDT"]
[Termination "Eliwood44 won by resignation"]

1. e4 {[%clk 0:02:13.6]} 1... e5 {[%clk 0:02:59.3]} 2. Nf3 {[%clk 0:02:13.8]}
2... Nc6 {[%clk 0:02:59.4]} 3. Bc4 {[%clk 0:02:14.2]} 3... Nf6 {[%clk
0:02:59.1]} 4. d3 {[%clk 0:02:14.7]} 4... Bc5 {[%clk 0:02:58.6]} 5. c3 {[%clk
0:02:15.2]} 5... a6 {[%clk 0:02:58.9]} 6. O-O {[%clk 0:02:14.8]} 6... d6 {[%clk
0:02:58.8]} 7. a4 {[%clk 0:02:15]} 7... O-O {[%clk 0:02:57.7]} 8. Bg5 {[%clk
0:02:14.6]} 8... h6 {[%clk 0:02:57.2]} 9. Bh4 {[%clk 0:02:14.8]} 9... Ba7 {[%clk
0:02:55.3]} 10. Nbd2 {[%clk 0:02:14.6]} 10... Ne7 {[%clk 0:02:55.1]} 11. Bxf6
{[%clk 0:02:14.2]} 11... gxf6 {[%clk 0:02:56]} 12. Nh4 {[%clk 0:02:14.6]} 12...
Kh7 {[%clk 0:02:50.4]} 13. Qh5 {[%clk 0:02:14.4]} 13... Ng6 {[%clk 0:02:47.3]}
14. Nf5 {[%clk 0:02:04.1]} 14... Bxf5 {[%clk 0:02:46.7]} 15. Qxf5 {[%clk
0:02:05]} 15... Qc8 {[%clk 0:02:42.8]} 16. Qxf6 {[%clk 0:02:00.3]} 16... Qg4
{[%clk 0:02:36.8]} 17. h3 {[%clk 0:01:36.6]} 17... Qg3 {[%clk 0:02:25.4]} 18. d4
{[%clk 0:01:29.2]} 18... Qg5 {[%clk 0:02:24.1]} 19. Qxg5 {[%clk 0:01:29]} 19...
hxg5 {[%clk 0:02:25]} 20. Nf3 {[%clk 0:01:27.8]} 20... f6 {[%clk 0:02:22.6]} 21.
Be6 {[%clk 0:01:17.4]} 21... Kg7 {[%clk 0:02:19.1]} 22. g3 {[%clk 0:01:11.9]}
22... Rfe8 {[%clk 0:02:16.6]} 23. d5 {[%clk 0:01:04.3]} 23... Rh8 {[%clk
0:02:11.1]} 24. Kg2 {[%clk 0:01:02.8]} 24... Rh6 {[%clk 0:02:03.7]} 25. Ra3
{[%clk 0:00:58.1]} 25... Rah8 {[%clk 0:02:01.8]} 26. Rb3 {[%clk 0:00:57.4]}
26... Rb8 {[%clk 0:02:00.4]} 27. a5 {[%clk 0:00:56.7]} 27... Bc5 {[%clk
0:01:59]} 28. Nh2 {[%clk 0:00:52]} 28... Rhh8 {[%clk 0:01:54.6]} 29. Ng4 {[%clk
0:00:41.9]} 29... Rhf8 {[%clk 0:01:40.3]} 30. c4 {[%clk 0:00:40.2]} 30... Bd4
{[%clk 0:01:36.9]} 31. Ne3 {[%clk 0:00:36]} 31... Ne7 {[%clk 0:01:34.4]} 32. Nc2
{[%clk 0:00:30.2]} 32... Bc5 {[%clk 0:01:33.7]} 33. Rf3 {[%clk 0:00:30.7]} 33...
c6 {[%clk 0:01:31.4]} 34. b4 {[%clk 0:00:28]} 34... Ba7 {[%clk 0:01:30.6]} 35.
Ne3 {[%clk 0:00:27.7]} 35... b6 {[%clk 0:01:26.5]} 36. dxc6 {[%clk 0:00:20.2]}
36... Nxc6 {[%clk 0:01:26.2]} 37. Nf5+ {[%clk 0:00:20.5]} 37... Kg6 {[%clk
0:01:25.9]} 38. Nxd6 {[%clk 0:00:20.1]} 38... Nxb4 {[%clk 0:01:23]} 39. axb6
{[%clk 0:00:18.8]} 39... Rxb6 {[%clk 0:01:23.5]} 40. c5 {[%clk 0:00:18.9]} 40...
Rc6 {[%clk 0:01:23.9]} 41. Bf5+ {[%clk 0:00:10.8]} 41... Kg7 {[%clk 0:01:23.8]}
42. Rd1 {[%clk 0:00:10]} 42... Bxc5 {[%clk 0:01:22.2]} 43. Nb7 {[%clk
0:00:08.9]} 43... Bd4 {[%clk 0:01:15.2]} 44. Rb3 {[%clk 0:00:06.6]} 44... Rb6
{[%clk 0:01:10.4]} 45. Na5 {[%clk 0:00:05]} 45... Rfb8 {[%clk 0:01:07.4]} 46.
Nc4 {[%clk 0:00:05.3]} 46... Rb5 {[%clk 0:01:06.3]} 47. Nd6 {[%clk 0:00:05.7]}
47... R5b6 {[%clk 0:01:06.6]} 48. Nc4 {[%clk 0:00:06.1]} 48... Rc6 {[%clk
0:01:05.6]} 49. Na5 {[%clk 0:00:04.2]} 49... Rc5 {[%clk 0:01:05.8]} 50. Ra3
{[%clk 0:00:01.4]} 50... Rbb5 {[%clk 0:01:01.2]} 51. Nb3 {[%clk 0:00:01.7]}
51... Rc3 {[%clk 0:01:01.5]} 52. Nxd4 {[%clk 0:00:02.1]} 52... exd4 {[%clk
0:00:54.7]} 53. Rxc3 {[%clk 0:00:01.6]} 53... dxc3 {[%clk 0:00:55.6]} 54. Rd7+
{[%clk 0:00:01.9]} 54... Kf8 {[%clk 0:00:54.5]} 55. Rc7 {[%clk 0:00:02.8]} 55...
c2 {[%clk 0:00:54.1]} 56. e5 {[%clk 0:00:03]} 56... fxe5 {[%clk 0:00:48.6]} 57.
Bxc2 {[%clk 0:00:03.7]} 57... Nxc2 {[%clk 0:00:47.4]} 58. Rxc2 {[%clk
0:00:04.6]} 58... Ke7 {[%clk 0:00:46.8]} 59. Kf3 {[%clk 0:00:05.2]} 59... Kf6
{[%clk 0:00:46.4]} 60. Ke4 {[%clk 0:00:05.8]} 60... Rb4+ {[%clk 0:00:46.2]} 61.
Kf3 {[%clk 0:00:06.3]} 61... a5 {[%clk 0:00:44.5]} 62. Rc5 {[%clk 0:00:06.1]}
62... a4 {[%clk 0:00:44.2]} 63. Ra5 {[%clk 0:00:06.8]} 63... Kf5 {[%clk
0:00:42.1]} 64. Ra6 {[%clk 0:00:06.1]} 64... Rb3+ {[%clk 0:00:41.6]} 65. Ke2
{[%clk 0:00:06]} 65... a3 {[%clk 0:00:41.9]} 66. Ra4 {[%clk 0:00:04]} 66... Rb2+
{[%clk 0:00:40]} 67. Kf3 {[%clk 0:00:04.4]} 67... a2 {[%clk 0:00:40.4]} 68. Ra5
{[%clk 0:00:03.7]} 68... Ke6 {[%clk 0:00:39.9]} 69. Ra6+ {[%clk 0:00:03.7]}
69... Kd5 {[%clk 0:00:40.1]} 70. h4 {[%clk 0:00:03.6]} 70... gxh4 {[%clk
0:00:39.8]} 71. gxh4 {[%clk 0:00:04.5]} 71... e4+ {[%clk 0:00:37.6]} 72. Ke3
{[%clk 0:00:04.2]} 72... Ke5 {[%clk 0:00:35.3]} 73. h5 {[%clk 0:00:04.3]} 73...
Rb3+ {[%clk 0:00:34.5]} 74. Ke2 {[%clk 0:00:04.4]} 74... Rb2+ {[%clk 0:00:34.6]}
75. Ke3 {[%clk 0:00:04.9]} 75... Rb3+ {[%clk 0:00:33.4]} 76. Ke2 {[%clk
0:00:05.1]} 76... Kf4 {[%clk 0:00:32.9]} 77. h6 {[%clk 0:00:05.3]} 77... Rb2+
{[%clk 0:00:32.3]} 78. Kf1 {[%clk 0:00:05.2]} 78... Rb1+ {[%clk 0:00:32.5]} 79.
Kg2 {[%clk 0:00:05.9]} 79... a1=Q {[%clk 0:00:33.1]} 80. Rxa1 {[%clk 0:00:06]}
80... Rxa1 {[%clk 0:00:34]} 81. h7 {[%clk 0:00:06.7]} 81... Ra8 {[%clk
0:00:34.1]} 82. h8=Q {[%clk 0:00:07.3]} 82... Rxh8 {[%clk 0:00:34.2]} 0-1

[Event "*** Titled Tuesday Blitz"]
[Site "Chess.com"]
[Date "2021.03.30"]
[Round "5"]
[White "Rozum_Ivan"]
[Black "sergeikim"]
[Result "1-0"]
[WhiteElo "2737"]
[BlackElo "2506"]
[TimeControl "180+1"]
[EndTime "10:56:46 PDT"]
[Termination "Rozum_Ivan won by resignation"]

1. e4 {[%clk 0:02:59.2]} 1... e5 {[%clk 0:02:57.8]} 2. Nf3 {[%clk 0:02:58.8]}
2... Nc6 {[%clk 0:02:57.2]} 3. Nc3 {[%clk 0:02:58]} 3... Nf6 {[%clk 0:02:55.8]}
4. h3 {[%clk 0:02:53.1]} 4... g6 {[%clk 0:02:54.4]} 5. d4 {[%clk 0:02:52.6]}
5... exd4 {[%clk 0:02:53.6]} 6. Nxd4 {[%clk 0:02:53.5]} 6... d6 {[%clk
0:02:53.4]} 7. Nde2 {[%clk 0:02:48.3]} 7... Bg7 {[%clk 0:02:52.6]} 8. g3 {[%clk
0:02:48.1]} 8... O-O {[%clk 0:02:51.8]} 9. Bg2 {[%clk 0:02:48.4]} 9... Re8
{[%clk 0:02:51.9]} 10. O-O {[%clk 0:02:48.5]} 10... Bd7 {[%clk 0:02:51.8]} 11.
a4 {[%clk 0:02:48.2]} 11... a6 {[%clk 0:02:51.5]} 12. g4 {[%clk 0:02:41.1]}
12... Rb8 {[%clk 0:02:47.3]} 13. a5 {[%clk 0:02:39.1]} 13... Ne5 {[%clk
0:02:26.9]} 14. b3 {[%clk 0:02:26.3]} 14... Bc6 {[%clk 0:02:25.6]} 15. Bb2
{[%clk 0:02:15.5]} 15... Ned7 {[%clk 0:02:22.1]} 16. f3 {[%clk 0:02:11.6]} 16...
Nc5 {[%clk 0:02:17.6]} 17. Ra2 {[%clk 0:01:50.2]} 17... Nfd7 {[%clk 0:02:05.5]}
18. b4 {[%clk 0:01:42.6]} 18... Ne6 {[%clk 0:02:04]} 19. f4 {[%clk 0:01:42.9]}
19... Nef8 {[%clk 0:02:01]} 20. Nd5 {[%clk 0:01:38.8]} 20... Bxd5 {[%clk
0:01:53.4]} 21. exd5 {[%clk 0:01:39.1]} 21... Bxb2 {[%clk 0:01:50.3]} 22. Rxb2
{[%clk 0:01:40]} 22... Qe7 {[%clk 0:01:49]} 23. c4 {[%clk 0:01:33.4]} 23... Qe3+
{[%clk 0:01:41.9]} 24. Kh1 {[%clk 0:01:29.8]} 24... Nf6 {[%clk 0:01:40.1]} 25.
Qd4 {[%clk 0:01:19.4]} 25... Qe7 {[%clk 0:01:31.1]} 26. Ng3 {[%clk 0:01:16.4]}
26... h6 {[%clk 0:01:27.1]} 27. Re2 {[%clk 0:01:12.8]} 27... Qd8 {[%clk
0:01:25.8]} 28. Rfe1 {[%clk 0:01:04.1]} 28... Rxe2 {[%clk 0:01:24.5]} 29. Rxe2
{[%clk 0:01:05]} 29... N8h7 {[%clk 0:01:18.8]} 30. Bf3 {[%clk 0:01:02.1]} 30...
Qd7 {[%clk 0:01:17.4]} 31. Kg2 {[%clk 0:01:00.6]} 31... Re8 {[%clk 0:01:16.4]}
32. Qa7 {[%clk 0:00:56.6]} 32... Rxe2+ {[%clk 0:01:07.6]} 33. Bxe2 {[%clk
0:00:57.5]} 33... Qc8 {[%clk 0:01:06.7]} 34. Qe3 {[%clk 0:00:45.4]} 34... Qd7
{[%clk 0:01:03.5]} 35. Bf3 {[%clk 0:00:42.1]} 35... Kg7 {[%clk 0:00:59.9]} 36.
Qa7 {[%clk 0:00:40.3]} 36... Qc8 {[%clk 0:00:58.7]} 37. b5 {[%clk 0:00:40.8]}
37... Nd7 {[%clk 0:00:55.8]} 38. Qd4+ {[%clk 0:00:37.3]} 38... Kg8 {[%clk
0:00:53.2]} 39. Ne4 {[%clk 0:00:37.6]} 39... Qe8 {[%clk 0:00:49.3]} 40. h4
{[%clk 0:00:29.8]} 40... Qe7 {[%clk 0:00:48.1]} 41. g5 {[%clk 0:00:29.9]} 41...
h5 {[%clk 0:00:43.8]} 42. Kf2 {[%clk 0:00:28.6]} 42... Nc5 {[%clk 0:00:42.6]}
43. Nxc5 {[%clk 0:00:27.7]} 43... dxc5 {[%clk 0:00:42.6]} 44. Qe3 {[%clk
0:00:27.7]} 44... Qd6 {[%clk 0:00:37.8]} 45. Qe5 {[%clk 0:00:26.3]} 45... Qd7
{[%clk 0:00:34.2]} 46. bxa6 {[%clk 0:00:14.1]} 46... bxa6 {[%clk 0:00:33.8]} 47.
Kg3 {[%clk 0:00:14.7]} 47... Nf8 {[%clk 0:00:31.8]} 48. Qf6 {[%clk 0:00:12.5]}
48... Qd6 {[%clk 0:00:29.6]} 49. Qxd6 {[%clk 0:00:11.6]} 49... cxd6 {[%clk
0:00:29.5]} 50. Bd1 {[%clk 0:00:10.7]} 50... Nd7 {[%clk 0:00:29]} 51. Ba4 {[%clk
0:00:11]} 51... Nb8 {[%clk 0:00:27.1]} 52. f5 {[%clk 0:00:10.8]} 52... Kg7
{[%clk 0:00:26]} 53. Kf4 {[%clk 0:00:10.1]} 53... f6 {[%clk 0:00:24.9]} 54. Be8
{[%clk 0:00:09.5]} 54... fxg5+ {[%clk 0:00:22.1]} 55. Kxg5 {[%clk 0:00:10.4]}
55... gxf5 {[%clk 0:00:21.8]} 56. Kxf5 {[%clk 0:00:11.1]} 56... Kf8 {[%clk
0:00:20.4]} 57. Ba4 {[%clk 0:00:11.2]} 57... Ke7 {[%clk 0:00:17.9]} 58. Kg6
{[%clk 0:00:11.2]} 58... Kf8 {[%clk 0:00:17.1]} 59. Kxh5 {[%clk 0:00:11.2]}
59... Kf7 {[%clk 0:00:17.2]} 60. Kg5 {[%clk 0:00:11.7]} 60... Kg7 {[%clk
0:00:15.5]} 61. Kf5 {[%clk 0:00:11.9]} 61... Kf7 {[%clk 0:00:15.4]} 62. h5
{[%clk 0:00:12.3]} 62... Kg7 {[%clk 0:00:15.4]} 63. Ke6 {[%clk 0:00:12.5]} 63...
Kh6 {[%clk 0:00:14.7]} 64. Kxd6 {[%clk 0:00:13]} 64... Kxh5 {[%clk 0:00:14.6]}
65. Kc7 {[%clk 0:00:13.4]} 1-0

[Event "*** Titled Tuesday Blitz"]
[Site "Chess.com"]
[Date "2021.03.30"]
[Round "5"]
[White "Julianos82"]
[Black "hypert"]
[Result "0-1"]
[WhiteElo "2383"]
[BlackElo "2530"]
[TimeControl "180+1"]
[EndTime "10:56:46 PDT"]
[Termination "hypert won by checkmate"]

1. d4 {[%clk 0:03:00.9]} 1... d5 {[%clk 0:02:57.3]} 2. Bf4 {[%clk 0:02:59.5]}
2... c5 {[%clk 0:02:56.5]} 3. e3 {[%clk 0:02:59.1]} 3... Nc6 {[%clk 0:02:56.7]}
4. c3 {[%clk 0:02:57.8]} 4... Bf5 {[%clk 0:02:56.2]} 5. Nf3 {[%clk 0:02:53.4]}
5... e6 {[%clk 0:02:50.9]} 6. Qa4 {[%clk 0:02:52.9]} 6... Qb6 {[%clk 0:02:46.2]}
7. Qb5 {[%clk 0:02:40.1]} 7... Qxb5 {[%clk 0:02:32.8]} 8. Bxb5 {[%clk 0:02:41]}
8... f6 {[%clk 0:02:32.7]} 9. Nbd2 {[%clk 0:02:38.7]} 9... Ne7 {[%clk
0:02:31.4]} 10. O-O {[%clk 0:02:37.8]} 10... g5 {[%clk 0:02:27.4]} 11. Bg3
{[%clk 0:02:37.4]} 11... h5 {[%clk 0:02:27.3]} 12. h4 {[%clk 0:02:30.5]} 12...
g4 {[%clk 0:02:26.5]} 13. Ne1 {[%clk 0:02:29]} 13... a6 {[%clk 0:02:26.8]} 14.
Bd3 {[%clk 0:02:27.4]} 14... c4 {[%clk 0:02:14.6]} 15. Bc2 {[%clk 0:02:21.1]}
15... Bxc2 {[%clk 0:02:11.5]} 16. Nxc2 {[%clk 0:02:22]} 16... f5 {[%clk
0:02:11.9]} 17. f3 {[%clk 0:02:19.9]} 17... Bh6 {[%clk 0:02:08.7]} 18. Rae1
{[%clk 0:02:13.5]} 18... Rg8 {[%clk 0:01:50.7]} 19. Kh2 {[%clk 0:02:11]} 19...
Kd7 {[%clk 0:01:48.4]} 20. Rf2 {[%clk 0:02:07.4]} 20... Raf8 {[%clk 0:01:38.1]}
21. Rfe2 {[%clk 0:01:55.9]} 21... Rg6 {[%clk 0:01:32.1]} 22. f4 {[%clk
0:01:35.4]} 22... b5 {[%clk 0:01:26.2]} 23. b3 {[%clk 0:01:30.5]} 23... Rb8
{[%clk 0:01:21.6]} 24. Ra1 {[%clk 0:01:25]} 24... Rgg8 {[%clk 0:01:12.2]} 25.
Ree1 {[%clk 0:01:24.7]} 25... Ra8 {[%clk 0:01:11.4]} 26. Reb1 {[%clk 0:01:24.3]}
26... Rgb8 {[%clk 0:01:09.3]} 27. Be1 {[%clk 0:01:22.9]} 27... Ng8 {[%clk
0:01:08.1]} 28. a4 {[%clk 0:01:14.4]} 28... Kc7 {[%clk 0:00:54.7]} 29. b4 {[%clk
0:01:13.1]} 29... a5 {[%clk 0:00:44.7]} 30. axb5 {[%clk 0:00:49.3]} 30... Rxb5
{[%clk 0:00:41.3]} 31. bxa5 {[%clk 0:00:47.8]} 31... Rbxa5 {[%clk 0:00:38.9]}
32. Rxa5 {[%clk 0:00:45.1]} 32... Rxa5 {[%clk 0:00:39.8]} 33. Rb2 {[%clk
0:00:43.7]} 33... Bf8 {[%clk 0:00:37.5]} 34. Nb1 {[%clk 0:00:42.4]} 34... Nf6
{[%clk 0:00:36.3]} 35. Bd2 {[%clk 0:00:35.9]} 35... Ne4 {[%clk 0:00:35.8]} 36.
Bc1 {[%clk 0:00:35.9]} 36... g3+ {[%clk 0:00:25]} 37. Kh3 {[%clk 0:00:32]} 37...
Be7 {[%clk 0:00:24.7]} 38. Bd2 {[%clk 0:00:26.7]} 38... Ra8 {[%clk 0:00:24]} 39.
Be1 {[%clk 0:00:26.1]} 39... Rg8 {[%clk 0:00:23.6]} 40. Nd2 {[%clk 0:00:22.7]}
40... Nxc3 {[%clk 0:00:14.8]} 41. Bxg3 {[%clk 0:00:22]} 41... Nd1 {[%clk
0:00:10.4]} 42. Rb1 {[%clk 0:00:17.6]} 42... Nxe3 {[%clk 0:00:10.5]} 43. Nxe3
{[%clk 0:00:17.2]} 43... Nxd4 {[%clk 0:00:10.1]} 44. Ra1 {[%clk 0:00:15.9]}
44... Bb4 {[%clk 0:00:08.3]} 45. Nf3 {[%clk 0:00:15.4]} 45... Ne2 {[%clk
0:00:07.3]} 46. Be1 {[%clk 0:00:14.2]} 46... Bc5 {[%clk 0:00:05.6]} 47. Bf2
{[%clk 0:00:12.7]} 47... Nxf4+ {[%clk 0:00:05.4]} 48. Kh2 {[%clk 0:00:13.1]}
48... Kc6 {[%clk 0:00:04.7]} 49. Ra5 {[%clk 0:00:12]} 49... Bxe3 {[%clk
0:00:04]} 50. Bxe3 {[%clk 0:00:12.6]} 50... Nxg2 {[%clk 0:00:02.9]} 51. Bd2
{[%clk 0:00:12]} 51... c3 {[%clk 0:00:02.5]} 52. Bxc3 {[%clk 0:00:12.1]} 52...
Nf4 {[%clk 0:00:03]} 53. Ng5 {[%clk 0:00:11.3]} 53... Ne2 {[%clk 0:00:03.4]} 54.
Bd2 {[%clk 0:00:10.4]} 54... Kd7 {[%clk 0:00:03.8]} 55. Ra7+ {[%clk 0:00:10.5]}
55... Kd6 {[%clk 0:00:04.2]} 56. Bb4+ {[%clk 0:00:10.4]} 56... Ke5 {[%clk
0:00:04]} 57. Nf7+ {[%clk 0:00:07.2]} 57... Kf4 {[%clk 0:00:03.3]} 58. Ng5
{[%clk 0:00:08.1]} 58... Kg4 {[%clk 0:00:03]} 59. Ra4 {[%clk 0:00:07.2]} 59...
f4 {[%clk 0:00:02.4]} 60. Bd2 {[%clk 0:00:07.5]} 60... Rc8 {[%clk 0:00:02.4]}
61. Nxe6 {[%clk 0:00:07.7]} 61... Rc2 {[%clk 0:00:02.7]} 62. Bxf4 {[%clk
0:00:08.1]} 62... Nxf4+ {[%clk 0:00:02.6]} 63. Kh1 {[%clk 0:00:08.6]} 63... Kg3
{[%clk 0:00:03.2]} 64. Rxf4 {[%clk 0:00:08.3]} 64... Rc1+ {[%clk 0:00:03.6]} 65.
Rf1 {[%clk 0:00:08.5]} 65... Rxf1# {[%clk 0:00:04.1]} 0-1

[Event "*** Titled Tuesday Blitz"]
[Site "Chess.com"]
[Date "2021.03.30"]
[Round "5"]
[White "Fandorine"]
[Black "Keranke"]
[Result "1-0"]
[WhiteElo "2887"]
[BlackElo "2797"]
[TimeControl "180+1"]
[EndTime "10:56:48 PDT"]
[Termination "Fandorine won on time"]

1. Nf3 {[%clk 0:02:59.6]} 1... g6 {[%clk 0:02:59.4]} 2. d4 {[%clk 0:02:58.2]}
2... Bg7 {[%clk 0:02:59.4]} 3. e4 {[%clk 0:02:57.4]} 3... d6 {[%clk 0:02:57.9]}
4. c3 {[%clk 0:02:57.6]} 4... Nc6 {[%clk 0:02:57]} 5. h3 {[%clk 0:02:57.1]} 5...
e5 {[%clk 0:02:57]} 6. dxe5 {[%clk 0:02:50.5]} 6... Nxe5 {[%clk 0:02:57.9]} 7.
Nxe5 {[%clk 0:02:49.3]} 7... Bxe5 {[%clk 0:02:57.6]} 8. Nd2 {[%clk 0:02:49.2]}
8... Bg7 {[%clk 0:02:54.8]} 9. Nf3 {[%clk 0:02:48.5]} 9... Nf6 {[%clk
0:02:52.7]} 10. Bd3 {[%clk 0:02:42.1]} 10... O-O {[%clk 0:02:49.6]} 11. O-O
{[%clk 0:02:42.1]} 11... d5 {[%clk 0:02:45.9]} 12. exd5 {[%clk 0:02:27.4]} 12...
Nxd5 {[%clk 0:02:45.4]} 13. Bg5 {[%clk 0:02:26.2]} 13... Qd6 {[%clk 0:02:43.4]}
14. Re1 {[%clk 0:02:24.8]} 14... Be6 {[%clk 0:02:13]} 15. Be4 {[%clk 0:02:21.8]}
15... Qc5 {[%clk 0:02:03.2]} 16. Qc1 {[%clk 0:02:13.1]} 16... Qb6 {[%clk
0:01:43]} 17. Bh6 {[%clk 0:02:06.6]} 17... Nf6 {[%clk 0:01:42.1]} 18. Bxg7
{[%clk 0:02:00.1]} 18... Kxg7 {[%clk 0:01:43]} 19. Bc2 {[%clk 0:01:58.4]} 19...
Rad8 {[%clk 0:01:40]} 20. Nd4 {[%clk 0:01:56.6]} 20... Bc8 {[%clk 0:01:33.9]}
21. a4 {[%clk 0:01:35.5]} 21... a6 {[%clk 0:01:27.2]} 22. a5 {[%clk 0:01:34.4]}
22... Qc5 {[%clk 0:01:23.8]} 23. Qf4 {[%clk 0:01:27.6]} 23... Rfe8 {[%clk
0:01:17.8]} 24. Bb3 {[%clk 0:01:17.6]} 24... h6 {[%clk 0:00:42.2]} 25. Kh1
{[%clk 0:01:06.5]} 25... g5 {[%clk 0:00:27.7]} 26. Qf3 {[%clk 0:01:00.8]} 26...
Re5 {[%clk 0:00:27.5]} 27. Qg3 {[%clk 0:00:43.1]} 27... Rde8 {[%clk 0:00:26.7]}
28. Rxe5 {[%clk 0:00:37.3]} 28... Qxe5 {[%clk 0:00:27.6]} 29. Qd3 {[%clk
0:00:24]} 29... c5 {[%clk 0:00:24.7]} 30. Nf3 {[%clk 0:00:24.2]} 30... Qe2
{[%clk 0:00:22.4]} 31. Qc4 {[%clk 0:00:20.8]} 31... Qxc4 {[%clk 0:00:20.2]} 32.
Bxc4 {[%clk 0:00:21.7]} 32... Ne4 {[%clk 0:00:19.1]} 33. Kg1 {[%clk 0:00:16]}
33... Nd6 {[%clk 0:00:18.4]} 34. Bf1 {[%clk 0:00:15.5]} 34... Be6 {[%clk
0:00:17.4]} 35. Nd2 {[%clk 0:00:14.9]} 35... Rd8 {[%clk 0:00:16.2]} 36. Nf3
{[%clk 0:00:12.1]} 36... Nc4 {[%clk 0:00:13.7]} 37. b4 {[%clk 0:00:09.2]} 37...
cxb4 {[%clk 0:00:11.5]} 38. cxb4 {[%clk 0:00:09.8]} 38... Nd2 {[%clk 0:00:12.4]}
39. Be2 {[%clk 0:00:08.3]} 39... Ne4 {[%clk 0:00:08.9]} 40. Rc1 {[%clk
0:00:07.9]} 40... Bd5 {[%clk 0:00:06.3]} 41. Nd4 {[%clk 0:00:06.9]} 41... Rd7
{[%clk 0:00:04.7]} 42. Bg4 {[%clk 0:00:06.5]} 42... Rd8 {[%clk 0:00:03.3]} 43.
Nf5+ {[%clk 0:00:07]} 43... Kh7 {[%clk 0:00:03.9]} 44. Ne3 {[%clk 0:00:07.3]}
44... Bc6 {[%clk 0:00:03.2]} 45. Rxc6 {[%clk 0:00:07.4]} 45... bxc6 {[%clk
0:00:03]} 46. Bf5+ {[%clk 0:00:08.1]} 46... Kg8 {[%clk 0:00:03]} 47. Bxe4 {[%clk
0:00:08.7]} 47... Rd4 {[%clk 0:00:03.9]} 48. Bxc6 {[%clk 0:00:08.7]} 48... Rxb4
{[%clk 0:00:04.8]} 49. Nd5 {[%clk 0:00:06.8]} 49... Rb1+ {[%clk 0:00:03.3]} 50.
Kh2 {[%clk 0:00:07.3]} 50... Ra1 {[%clk 0:00:04.2]} 51. Nf6+ {[%clk 0:00:03.2]}
51... Kh8 {[%clk 0:00:03.2]} 52. Bd5 {[%clk 0:00:02.7]} 52... Rxa5 {[%clk
0:00:03.7]} 53. Bf3 {[%clk 0:00:02]} 53... Kg7 {[%clk 0:00:03.8]} 54. Nh5+
{[%clk 0:00:02.4]} 54... Kf8 {[%clk 0:00:04.1]} 55. g4 {[%clk 0:00:02.8]} 55...
Ra1 {[%clk 0:00:04.6]} 56. Kg2 {[%clk 0:00:03.2]} 56... a5 {[%clk 0:00:05.5]}
57. Nf6 {[%clk 0:00:03.4]} 57... a4 {[%clk 0:00:06.4]} 58. Nd7+ {[%clk
0:00:03.9]} 58... Ke7 {[%clk 0:00:05.3]} 59. Nc5 {[%clk 0:00:03.7]} 59... a3
{[%clk 0:00:05.7]} 60. Bd5 {[%clk 0:00:04.1]} 1-0